[Event "Titled Tuesday Blitz April 12 Early 2022"]
[White "Matlakov, Maxim"]
[Black "Nakamura, Hikaru"]
[WhiteFideId "4168003"]
[BlackFideId "2016192"]
[WhiteElo "2669"]
[BlackElo "2850"]
[Result "0-1"]
[Round "07"]
[TimeControl "180+1"]
[Date "2022.04.12"]
[WhiteClock "0:00:15"]
[BlackClock "0:00:42"]

1. e4 {[%clk 0:03:00]}  c6 {[%clk 0:02:57]} 2. d4 {[%clk 0:02:57]}  d5 {[%clk 0:02:57]} 3. e5 {[%clk 0:02:58]}  Bf5 {[%clk 0:02:57]} 4. h4 {[%clk 0:02:57]}  h5 {[%clk 0:02:58]} 5. Bd3 {[%clk 0:02:58]}  Bxd3 {[%clk 0:02:58]} 6. Qxd3 {[%clk 0:02:58]}  e6 {[%clk 0:02:58]} 7. Bg5 {[%clk 0:02:53]}  Qa5+ {[%clk 0:02:57]} 8. Nd2 {[%clk 0:02:49]}  Qa6 {[%clk 0:02:58]} 9. c4 {[%clk 0:02:43]}  Ne7 {[%clk 0:02:30]} 10. Ne2 {[%clk 0:02:37]}  Nd7 {[%clk 0:02:29]} 11. O-O {[%clk 0:02:34]}  Nf5 {[%clk 0:02:26]} 12. Ng3 {[%clk 0:02:29]}  g6 {[%clk 0:02:26]} 13. Nxf5 {[%clk 0:02:27]}  gxf5 {[%clk 0:02:26]} 14. b3 {[%clk 0:02:24]}  Ba3 {[%clk 0:02:17]} 15. Qc2 {[%clk 0:02:12]}  Nf8 {[%clk 0:02:14]} 16. cxd5 {[%clk 0:01:46]}  cxd5 {[%clk 0:02:14]} 17. b4 {[%clk 0:01:46]}  Bxb4 {[%clk 0:02:06]} 18. Rab1 {[%clk 0:01:45]}  Bxd2 {[%clk 0:02:01]} 19. Qxd2 {[%clk 0:01:43]}  Nh7 {[%clk 0:01:54]} 20. Bh6 {[%clk 0:01:40]}  O-O-O {[%clk 0:01:51]} 21. Qb4 {[%clk 0:01:19]}  Rd7 {[%clk 0:01:51]} 22. Rfc1+ {[%clk 0:01:12]}  Kb8 {[%clk 0:01:52]} 23. Qd2 {[%clk 0:01:12]}  Rg8 {[%clk 0:01:45]} 24. g3 {[%clk 0:01:06]}  b6 {[%clk 0:01:37]} 25. Rb3 {[%clk 0:01:04]}  Nf8 {[%clk 0:01:26]} 26. Rbc3 {[%clk 0:00:55]}  Ng6 {[%clk 0:01:23]} 27. Bg5 {[%clk 0:00:56]}  f4 {[%clk 0:01:19]} 28. Kh2 {[%clk 0:00:49]}  fxg3+ {[%clk 0:01:20]} 29. fxg3 {[%clk 0:00:50]}  Qa4 {[%clk 0:01:16]} 30. Kh3 {[%clk 0:00:49]}  Ne7 {[%clk 0:01:11]} 31. Qd1 {[%clk 0:00:31]}  Qxd1 {[%clk 0:00:59]} 32. Rxd1 {[%clk 0:00:32]}  Nf5 {[%clk 0:01:00]} 33. Rf3 {[%clk 0:00:32]}  Rc7 {[%clk 0:00:57]} 34. Rd2 {[%clk 0:00:30]}  Rc4 {[%clk 0:00:55]} 35. Rfd3 {[%clk 0:00:30]}  b5 {[%clk 0:00:54]} 36. g4 {[%clk 0:00:30]}  hxg4+ {[%clk 0:00:54]} 37. Kxg4 {[%clk 0:00:31]}  Rc1 {[%clk 0:00:51]} 38. Rg2 {[%clk 0:00:28]}  Rh1 {[%clk 0:00:49]} 39. Rh3 {[%clk 0:00:23]}  Rd1 {[%clk 0:00:49]} 40. Rf3 {[%clk 0:00:16]}  Rxd4+ {[%clk 0:00:49]} 41. Kh3 {[%clk 0:00:16]}  Nxh4 {[%clk 0:00:43]} 42. Rxf7 {[%clk 0:00:15]}  Nxg2 {[%clk 0:00:42]} 0-1


[Site "https://www.chess.com"]

[Event "Titled Tuesday Blitz April 12 Early 2022"]
[White "Migot, Tangi"]
[Black "Avalos Parra, Joao"]
[WhiteFideId "662445"]
[BlackFideId "3402541"]
[WhiteElo "2525"]
[BlackElo "2173"]
[Result "1-0"]
[Round "07"]
[TimeControl "180+1"]
[Date "2022.04.13"]
[WhiteClock "0:00:25"]
[BlackClock "0:00:05"]

1. Nf3 {[%clk 0:03:00]}  d5 {[%clk 0:02:56]} 2. c4 {[%clk 0:03:01]}  c6 {[%clk 0:02:57]} 3. g3 {[%clk 0:02:59]}  Nf6 {[%clk 0:02:55]} 4. Bg2 {[%clk 0:02:59]}  Bf5 {[%clk 0:02:56]} 5. O-O {[%clk 0:02:59]}  e6 {[%clk 0:02:53]} 6. Nd4 {[%clk 0:02:55]}  Bg6 {[%clk 0:02:51]} 7. cxd5 {[%clk 0:02:55]}  exd5 {[%clk 0:02:49]} 8. d3 {[%clk 0:02:55]}  Be7 {[%clk 0:02:50]} 9. Nc3 {[%clk 0:02:54]}  O-O {[%clk 0:02:49]} 10. e4 {[%clk 0:02:46]}  dxe4 {[%clk 0:02:44]} 11. dxe4 {[%clk 0:02:46]}  Bc5 {[%clk 0:02:41]} 12. Be3 {[%clk 0:02:42]}  Nbd7 {[%clk 0:02:40]} 13. Qb3 {[%clk 0:02:32]}  Qb6 {[%clk 0:02:34]} 14. Rad1 {[%clk 0:02:32]}  Rfe8 {[%clk 0:02:31]} 15. f3 {[%clk 0:02:09]}  a5 {[%clk 0:02:17]} 16. Qc2 {[%clk 0:02:08]}  Ne5 {[%clk 0:02:11]} 17. Na4 {[%clk 0:02:03]}  Bxd4 {[%clk 0:02:06]} 18. Bxd4 {[%clk 0:01:54]}  Qb4 {[%clk 0:01:57]} 19. a3 {[%clk 0:01:51]}  Qe7 {[%clk 0:01:57]} 20. Qc3 {[%clk 0:01:42]}  Ned7 {[%clk 0:01:43]} 21. Rfe1 {[%clk 0:01:30]}  b5 {[%clk 0:01:03]} 22. Nc5 {[%clk 0:01:29]}  Nb6 {[%clk 0:00:53]} 23. f4 {[%clk 0:01:11]}  Bh5 {[%clk 0:00:53]} 24. Rc1 {[%clk 0:01:06]}  Rac8 {[%clk 0:00:45]} 25. h3 {[%clk 0:00:59]}  Nfd7 {[%clk 0:00:20]} 26. Nxd7 {[%clk 0:00:53]}  Nxd7 {[%clk 0:00:21]} 27. g4 {[%clk 0:00:50]}  b4 {[%clk 0:00:18]} 28. axb4 {[%clk 0:00:48]}  axb4 {[%clk 0:00:19]} 29. Qc4 {[%clk 0:00:41]}  c5 {[%clk 0:00:15]} 30. Bf2 {[%clk 0:00:38]}  Bxg4 {[%clk 0:00:06]} 31. hxg4 {[%clk 0:00:37]}  h5 {[%clk 0:00:05]} 32. gxh5 {[%clk 0:00:35]}  Qd6 {[%clk 0:00:06]} 33. e5 {[%clk 0:00:31]}  Qh6 {[%clk 0:00:06]} 34. Rcd1 {[%clk 0:00:25]}  Nb6 {[%clk 0:00:05]} 35. Qb5 {[%clk 0:00:25]} 1-0


[Site "https://www.chess.com"]

[Event "Titled Tuesday Blitz April 12 Early 2022"]
[White "Mika, Tomasz"]
[Black "Shtyka, Sergey"]
[WhiteFideId "1132970"]
[BlackFideId "4138465"]
[WhiteElo "2116"]
[BlackElo "2014"]
[Result "0-1"]
[Round "07"]
[TimeControl "180+1"]
[Date "2022.04.13"]
[WhiteClock "0:00:01"]
[BlackClock "0:00:15"]

1. d4 {[%clk 0:02:59]}  c5 {[%clk 0:03:00]} 2. dxc5 {[%clk 0:02:56]}  e5 {[%clk 0:02:59]} 3. Be3 {[%clk 0:02:54]}  Nf6 {[%clk 0:02:54]} 4. Nf3 {[%clk 0:02:51]}  Nc6 {[%clk 0:02:52]} 5. Nc3 {[%clk 0:02:46]}  Ng4 {[%clk 0:02:50]} 6. Nd5 {[%clk 0:02:16]}  Nxe3 {[%clk 0:02:48]} 7. Nxe3 {[%clk 0:02:16]}  Bxc5 {[%clk 0:02:47]} 8. Nc4 {[%clk 0:02:16]}  e4 {[%clk 0:02:32]} 9. Qd5 {[%clk 0:01:48]}  Bb4+ {[%clk 0:01:36]} 10. c3 {[%clk 0:01:43]}  O-O {[%clk 0:01:35]} 11. Ng5 {[%clk 0:01:05]}  Be7 {[%clk 0:01:30]} 12. Nxe4 {[%clk 0:00:59]}  b5 {[%clk 0:01:27]} 13. Ncd6 {[%clk 0:00:51]}  b4 {[%clk 0:01:22]} 14. e3 {[%clk 0:00:44]}  bxc3 {[%clk 0:01:22]} 15. bxc3 {[%clk 0:00:44]}  Bxd6 {[%clk 0:01:12]} 16. Nxd6 {[%clk 0:00:40]}  Qf6 {[%clk 0:01:12]} 17. Rc1 {[%clk 0:00:37]}  a5 {[%clk 0:00:36]} 18. Be2 {[%clk 0:00:29]}  Ba6 {[%clk 0:00:36]} 19. Bxa6 {[%clk 0:00:23]}  Rxa6 {[%clk 0:00:37]} 20. Ne4 {[%clk 0:00:21]}  Qg6 {[%clk 0:00:33]} 21. O-O {[%clk 0:00:15]}  Ne7 {[%clk 0:00:32]} 22. Qd4 {[%clk 0:00:09]}  d5 {[%clk 0:00:32]} 23. Ng3 {[%clk 0:00:06]}  Rc6 {[%clk 0:00:31]} 24. c4 {[%clk 0:00:06]}  Rfc8 {[%clk 0:00:29]} 25. Qe5 {[%clk 0:00:03]}  Re6 {[%clk 0:00:25]} 26. Qd4 {[%clk 0:00:02]}  Rec6 {[%clk 0:00:23]} 27. Qe5 {[%clk 0:00:02]}  Kf8 {[%clk 0:00:19]} 28. Qd4 {[%clk 0:00:01]}  dxc4 {[%clk 0:00:17]} 29. Rc3 {[%clk 0:00:01]}  Qd6 {[%clk 0:00:15]} 0-1


[Site "https://www.chess.com"]

[Event "Titled Tuesday Blitz April 12 Early 2022"]
[White "Narayanan.S.L"]
[Black "Svane, Frederik"]
[WhiteFideId "5058422"]
[BlackFideId "12923044"]
[WhiteElo "2494"]
[BlackElo "2459"]
[Result "0-1"]
[Round "07"]
[TimeControl "180+1"]
[Date "2022.04.12"]
[WhiteClock "0:00:14"]
[BlackClock "0:01:20"]

1. b3 {[%clk 0:03:00]}  Nf6 {[%clk 0:02:59]} 2. Bb2 {[%clk 0:03:01]}  c5 {[%clk 0:02:57]} 3. Nf3 {[%clk 0:03:00]}  d6 {[%clk 0:02:57]} 4. c4 {[%clk 0:03:00]}  e5 {[%clk 0:02:52]} 5. Nc3 {[%clk 0:02:59]}  Nc6 {[%clk 0:02:50]} 6. d3 {[%clk 0:02:59]}  g6 {[%clk 0:02:49]} 7. g3 {[%clk 0:02:59]}  Bg7 {[%clk 0:02:50]} 8. Bg2 {[%clk 0:03:00]}  O-O {[%clk 0:02:50]} 9. O-O {[%clk 0:03:01]}  Be6 {[%clk 0:02:46]} 10. Ng5 {[%clk 0:03:00]}  Bf5 {[%clk 0:02:38]} 11. Nge4 {[%clk 0:03:00]}  Nxe4 {[%clk 0:02:37]} 12. dxe4 {[%clk 0:02:59]}  Be6 {[%clk 0:02:36]} 13. e3 {[%clk 0:02:59]}  h5 {[%clk 0:02:18]} 14. Nb5 {[%clk 0:02:46]}  Qb6 {[%clk 0:02:11]} 15. Qxd6 {[%clk 0:02:28]}  Rad8 {[%clk 0:01:46]} 16. Qc7 {[%clk 0:02:27]}  Qa6 {[%clk 0:01:47]} 17. Rfd1 {[%clk 0:01:59]}  Rxd1+ {[%clk 0:01:43]} 18. Rxd1 {[%clk 0:01:59]}  Rc8 {[%clk 0:01:44]} 19. Qd6 {[%clk 0:01:53]}  Qxa2 {[%clk 0:01:44]} 20. Bc3 {[%clk 0:00:38]}  Qxb3 {[%clk 0:01:29]} 21. Rc1 {[%clk 0:00:21]}  Rd8 {[%clk 0:01:27]} 22. Qxc5 {[%clk 0:00:14]}  Qd1+ {[%clk 0:01:20]} 0-1


[Site "https://www.chess.com"]

[Event "Titled Tuesday Blitz April 12 Early 2022"]
[White "Obolenskikh, Dmitry"]
[Black "Maltsevskaya, Aleksandra"]
[WhiteFideId "4156013"]
[BlackFideId "24174041"]
[WhiteElo "2813"]
[BlackElo "2641"]
[Result "1-0"]
[Round "07"]
[TimeControl "180+1"]
[Date "2022.04.13"]
[WhiteClock "0:01:32"]
[BlackClock "0:00:04"]

1. e4 {[%clk 0:02:59]}  c5 {[%clk 0:02:45]} 2. Nf3 {[%clk 0:02:57]}  e6 {[%clk 0:02:45]} 3. d4 {[%clk 0:02:57]}  cxd4 {[%clk 0:02:46]} 4. Nxd4 {[%clk 0:02:57]}  Nc6 {[%clk 0:02:46]} 5. Nc3 {[%clk 0:02:57]}  Nf6 {[%clk 0:02:42]} 6. Ndb5 {[%clk 0:02:56]}  Bc5 {[%clk 0:02:42]} 7. Bf4 {[%clk 0:02:55]}  O-O {[%clk 0:02:41]} 8. Bc7 {[%clk 0:02:54]}  Qe7 {[%clk 0:02:41]} 9. Bd6 {[%clk 0:02:53]}  Bxd6 {[%clk 0:02:42]} 10. Qxd6 {[%clk 0:02:53]}  Qd8 {[%clk 0:02:41]} 11. Nc7 {[%clk 0:02:48]}  Ne8 {[%clk 0:02:38]} 12. Nxe8 {[%clk 0:02:46]}  Rxe8 {[%clk 0:02:39]} 13. Bc4 {[%clk 0:02:36]}  a6 {[%clk 0:02:27]} 14. a4 {[%clk 0:02:35]}  b6 {[%clk 0:02:02]} 15. O-O {[%clk 0:02:29]}  Bb7 {[%clk 0:02:02]} 16. Rad1 {[%clk 0:02:25]}  Qf6 {[%clk 0:00:33]} 17. Bb3 {[%clk 0:02:04]}  Rad8 {[%clk 0:00:30]} 18. Qc7 {[%clk 0:02:02]}  Bc8 {[%clk 0:00:30]} 19. Qxb6 {[%clk 0:02:01]}  h5 {[%clk 0:00:26]} 20. f4 {[%clk 0:01:52]}  h4 {[%clk 0:00:17]} 21. Rd3 {[%clk 0:01:52]}  d5 {[%clk 0:00:14]} 22. Qxc6 {[%clk 0:01:47]}  dxe4 {[%clk 0:00:08]} 23. Qxe4 {[%clk 0:01:41]}  h3 {[%clk 0:00:04]} 24. Rxh3 {[%clk 0:01:39]}  Rd2 {[%clk 0:00:04]} 25. Rg3 {[%clk 0:01:36]}  g6 {[%clk 0:00:04]} 26. f5 {[%clk 0:01:32]} 1-0


[Site "https://www.chess.com"]

[Event "Titled Tuesday Blitz April 12 Early 2022"]
[White "Odegov, Artem"]
[Black "Roman, Rodrigo"]
[WhiteFideId "34183644"]
[BlackFideId "3701220"]
[WhiteElo "2286"]
[BlackElo "2001"]
[Result "0-1"]
[Round "07"]
[TimeControl "180+1"]
[Date "2022.04.13"]
[WhiteClock "0:00:02"]
[BlackClock "0:00:18"]

1. d4 {[%clk 0:03:00]}  Nf6 {[%clk 0:02:59]} 2. c4 {[%clk 0:03:01]}  e6 {[%clk 0:03:00]} 3. Nf3 {[%clk 0:03:00]}  b6 {[%clk 0:02:59]} 4. g3 {[%clk 0:03:01]}  Bb7 {[%clk 0:03:00]} 5. b3 {[%clk 0:03:01]}  d6 {[%clk 0:03:00]} 6. Bg2 {[%clk 0:03:02]}  Nbd7 {[%clk 0:03:01]} 7. O-O {[%clk 0:03:02]}  h5 {[%clk 0:03:01]} 8. Bb2 {[%clk 0:03:03]}  Ng4 {[%clk 0:02:58]} 9. Nbd2 {[%clk 0:03:03]}  g5 {[%clk 0:02:49]} 10. e4 {[%clk 0:03:01]}  h4 {[%clk 0:02:47]} 11. d5 {[%clk 0:03:01]}  e5 {[%clk 0:02:44]} 12. Nxh4 {[%clk 0:03:01]}  Nxh2 {[%clk 0:02:36]} 13. Nf5 {[%clk 0:02:59]}  Nxf1 {[%clk 0:02:35]} 14. Nxf1 {[%clk 0:02:59]}  Qf6 {[%clk 0:02:31]} 15. b4 {[%clk 0:02:59]}  a5 {[%clk 0:02:30]} 16. a3 {[%clk 0:02:58]}  Bc8 {[%clk 0:02:26]} 17. N1e3 {[%clk 0:02:53]}  Be7 {[%clk 0:02:21]} 18. c5 {[%clk 0:02:36]}  bxc5 {[%clk 0:02:14]} 19. b5 {[%clk 0:02:36]}  Nb6 {[%clk 0:02:08]} 20. a4 {[%clk 0:02:08]}  Qg6 {[%clk 0:02:03]} 21. Ra3 {[%clk 0:02:08]}  g4 {[%clk 0:01:57]} 22. Ra1 {[%clk 0:01:51]}  Bg5 {[%clk 0:01:55]} 23. Qe2 {[%clk 0:00:59]}  Bxe3 {[%clk 0:01:48]} 24. Nxe3 {[%clk 0:00:58]}  Ke7 {[%clk 0:01:44]} 25. Rc1 {[%clk 0:00:48]}  Bd7 {[%clk 0:01:41]} 26. Qc2 {[%clk 0:00:42]}  f6 {[%clk 0:01:41]} 27. Ba3 {[%clk 0:00:37]}  Nc8 {[%clk 0:01:37]} 28. Qd2 {[%clk 0:00:17]}  Nb6 {[%clk 0:01:33]} 29. Qc2 {[%clk 0:00:14]}  Rhc8 {[%clk 0:01:29]} 30. Kf1 {[%clk 0:00:08]}  Rab8 {[%clk 0:01:13]} 31. Ke2 {[%clk 0:00:08]}  Nxa4 {[%clk 0:01:13]} 32. Rh1 {[%clk 0:00:04]}  Bxb5+ {[%clk 0:01:13]} 33. Ke1 {[%clk 0:00:05]}  Rh8 {[%clk 0:01:12]} 34. Nf5+ {[%clk 0:00:04]}  Kf7 {[%clk 0:01:10]} 35. Rg1 {[%clk 0:00:04]}  Rh2 {[%clk 0:01:09]} 36. Bf1 {[%clk 0:00:03]}  Bxf1 {[%clk 0:01:06]} 37. Qxa4 {[%clk 0:00:03]}  Rb1+ {[%clk 0:01:02]} 38. Kd2 {[%clk 0:00:02]}  Rxf2+ {[%clk 0:01:01]} 39. Kc3 {[%clk 0:00:02]}  Bb5 {[%clk 0:00:52]} 40. Qxa5 {[%clk 0:00:02]}  Rf3+ {[%clk 0:00:33]} 41. Kd2 {[%clk 0:00:03]}  Rxg1 {[%clk 0:00:27]} 42. Qxc7+ {[%clk 0:00:02]}  Kg8 {[%clk 0:00:27]} 43. Qc8+ {[%clk 0:00:02]}  Qe8 {[%clk 0:00:22]} 44. Ne7+ {[%clk 0:00:01]}  Kh7 {[%clk 0:00:20]} 45. Qf5+ {[%clk 0:00:02]}  Rxf5 {[%clk 0:00:19]} 46. Nxf5 {[%clk 0:00:02]}  Rg2+ {[%clk 0:00:20]} 47. Ke3 {[%clk 0:00:03]}  Qa8 {[%clk 0:00:20]} 48. Bxc5 {[%clk 0:00:03]}  Qa2 {[%clk 0:00:18]} 49. Bb4 {[%clk 0:00:02]}  Qe2# {[%clk 0:00:18]} 0-1


[Site "https://www.chess.com"]

[Event "Titled Tuesday Blitz April 12 Early 2022"]
[White "Onslow, Alfie"]
[Black "Kadam, Om Manish"]
[WhiteFideId "436976"]
[BlackFideId "45076294"]
[WhiteElo "1884"]
[BlackElo "1729"]
[Result "1-0"]
[Round "07"]
[TimeControl "180+1"]
[Date "2022.04.13"]
[WhiteClock "0:01:46"]
[BlackClock "0:01:54"]

1. Nf3 {[%clk 0:02:55]}  Nf6 {[%clk 0:02:59]} 2. c4 {[%clk 0:02:54]}  g6 {[%clk 0:02:59]} 3. b3 {[%clk 0:02:54]}  Bg7 {[%clk 0:02:59]} 4. Bb2 {[%clk 0:02:54]}  O-O {[%clk 0:03:00]} 5. d4 {[%clk 0:02:55]}  c6 {[%clk 0:03:01]} 6. g3 {[%clk 0:02:46]}  d5 {[%clk 0:03:00]} 7. Bg2 {[%clk 0:02:46]}  b6 {[%clk 0:02:58]} 8. O-O {[%clk 0:02:46]}  Bb7 {[%clk 0:02:58]} 9. Ne5 {[%clk 0:02:45]}  Nbd7 {[%clk 0:02:58]} 10. Nd2 {[%clk 0:02:43]}  e6 {[%clk 0:02:57]} 11. Ndf3 {[%clk 0:02:41]}  Nxe5 {[%clk 0:02:55]} 12. Nxe5 {[%clk 0:02:40]}  Nd7 {[%clk 0:02:55]} 13. Rc1 {[%clk 0:02:38]}  Nxe5 {[%clk 0:02:55]} 14. dxe5 {[%clk 0:02:39]}  Qd7 {[%clk 0:02:53]} 15. f4 {[%clk 0:02:32]}  Rfd8 {[%clk 0:02:50]} 16. e3 {[%clk 0:02:32]}  Rac8 {[%clk 0:02:50]} 17. Qd2 {[%clk 0:02:27]}  a5 {[%clk 0:02:46]} 18. Rfd1 {[%clk 0:02:26]}  Bf8 {[%clk 0:02:44]} 19. h4 {[%clk 0:02:19]}  Qe8 {[%clk 0:02:27]} 20. Qe2 {[%clk 0:02:15]}  Ba6 {[%clk 0:02:26]} 21. h5 {[%clk 0:02:09]}  dxc4 {[%clk 0:02:25]} 22. bxc4 {[%clk 0:02:09]}  Qe7 {[%clk 0:02:04]} 23. Rxd8 {[%clk 0:02:00]}  Rxd8 {[%clk 0:01:57]} 24. Bxc6 {[%clk 0:02:00]}  Qb4 {[%clk 0:01:57]} 25. Bc3 {[%clk 0:01:49]}  Qb5 {[%clk 0:01:54]} 26. cxb5 {[%clk 0:01:46]} 1-0


[Site "https://www.chess.com"]

[Event "Titled Tuesday Blitz April 12 Early 2022"]
[White "Ovezdurdyyeva, Jemal"]
[Black "Omariev, Maksim"]
[WhiteFideId "14001888"]
[BlackFideId "4193423"]
[WhiteElo "1946"]
[BlackElo "2482"]
[Result "0-1"]
[Round "07"]
[TimeControl "180+1"]
[Date "2022.04.13"]
[WhiteClock "0:00:10"]
[BlackClock "0:00:45"]

1. e4 {[%clk 0:02:52]}  h5 {[%clk 0:03:00]} 2. d4 {[%clk 0:02:50]}  h4 {[%clk 0:03:01]} 3. c4 {[%clk 0:02:49]}  c6 {[%clk 0:03:01]} 4. Nc3 {[%clk 0:02:49]}  d6 {[%clk 0:03:01]} 5. h3 {[%clk 0:02:44]}  e5 {[%clk 0:03:01]} 6. Nf3 {[%clk 0:02:38]}  Nd7 {[%clk 0:02:53]} 7. Be3 {[%clk 0:02:25]}  Be7 {[%clk 0:02:47]} 8. Qd2 {[%clk 0:02:23]}  Ngf6 {[%clk 0:02:48]} 9. O-O-O {[%clk 0:02:23]}  Qa5 {[%clk 0:02:45]} 10. Bg5 {[%clk 0:02:17]}  Ng8 {[%clk 0:02:26]} 11. Bxe7 {[%clk 0:02:16]}  Nxe7 {[%clk 0:02:27]} 12. Qg5 {[%clk 0:02:13]}  g6 {[%clk 0:02:08]} 13. Nxh4 {[%clk 0:02:06]}  a6 {[%clk 0:01:29]} 14. Nf3 {[%clk 0:01:37]}  b5 {[%clk 0:01:17]} 15. dxe5 {[%clk 0:01:35]}  dxe5 {[%clk 0:01:17]} 16. Nxe5 {[%clk 0:01:31]}  Rh5 {[%clk 0:01:17]} 17. Nxc6 {[%clk 0:01:26]}  Qxc3+ {[%clk 0:00:59]} 18. bxc3 {[%clk 0:01:21]}  Rxg5 {[%clk 0:01:00]} 19. f4 {[%clk 0:01:14]}  Rc5 {[%clk 0:00:57]} 20. Nxe7 {[%clk 0:00:58]}  Kxe7 {[%clk 0:00:58]} 21. cxb5 {[%clk 0:00:58]}  axb5 {[%clk 0:00:55]} 22. Kb2 {[%clk 0:00:58]}  Nb6 {[%clk 0:00:55]} 23. c4 {[%clk 0:00:29]}  Be6 {[%clk 0:00:53]} 24. f5 {[%clk 0:00:15]}  gxf5 {[%clk 0:00:52]} 25. exf5 {[%clk 0:00:16]}  Rxf5 {[%clk 0:00:51]} 26. cxb5 {[%clk 0:00:15]}  Rxa2+ {[%clk 0:00:51]} 27. Kc3 {[%clk 0:00:16]}  Nd5+ {[%clk 0:00:45]} 28. Kd4 {[%clk 0:00:13]}  Rf4+ {[%clk 0:00:45]} 29. Kc5 {[%clk 0:00:13]}  Rc2+ {[%clk 0:00:44]} 30. Bc4 {[%clk 0:00:10]}  Rfxc4# {[%clk 0:00:45]} 0-1


[Site "https://www.chess.com"]

[Event "Titled Tuesday Blitz April 12 Early 2022"]
[White "Pakleza, Zbigniew"]
[Black "Lazavik, Denis"]
[WhiteFideId "1119290"]
[BlackFideId "13515110"]
[WhiteElo "2467"]
[BlackElo "2437"]
[Result "0-1"]
[Round "07"]
[TimeControl "180+1"]
[Date "2022.04.12"]
[WhiteClock "0:00:04"]
[BlackClock "0:00:23"]

1. Nf3 {[%clk 0:02:55]}  d5 {[%clk 0:02:59]} 2. c4 {[%clk 0:02:55]}  e6 {[%clk 0:02:59]} 3. g3 {[%clk 0:02:55]}  Nf6 {[%clk 0:02:59]} 4. Bg2 {[%clk 0:02:55]}  dxc4 {[%clk 0:02:58]} 5. Qa4+ {[%clk 0:02:54]}  Bd7 {[%clk 0:02:57]} 6. Qxc4 {[%clk 0:02:54]}  c5 {[%clk 0:02:58]} 7. Ne5 {[%clk 0:02:45]}  Qc8 {[%clk 0:02:57]} 8. O-O {[%clk 0:02:42]}  Nc6 {[%clk 0:02:57]} 9. Nxd7 {[%clk 0:02:41]}  Qxd7 {[%clk 0:02:58]} 10. d3 {[%clk 0:02:33]}  Be7 {[%clk 0:02:58]} 11. Nc3 {[%clk 0:02:03]}  O-O {[%clk 0:02:56]} 12. Ne4 {[%clk 0:02:00]}  Nxe4 {[%clk 0:02:51]} 13. Qxe4 {[%clk 0:02:01]}  Rac8 {[%clk 0:02:46]} 14. Rd1 {[%clk 0:01:50]}  Rfd8 {[%clk 0:02:37]} 15. Bd2 {[%clk 0:01:40]}  b6 {[%clk 0:02:26]} 16. Bc3 {[%clk 0:01:38]}  Nd4 {[%clk 0:02:23]} 17. Kf1 {[%clk 0:01:18]}  f5 {[%clk 0:02:03]} 18. Qe3 {[%clk 0:01:10]}  Nc2 {[%clk 0:01:57]} 19. Qf3 {[%clk 0:00:48]}  Nxa1 {[%clk 0:01:55]} 20. Rxa1 {[%clk 0:00:49]}  Rf8 {[%clk 0:01:52]} 21. a4 {[%clk 0:00:36]}  Bf6 {[%clk 0:01:50]} 22. a5 {[%clk 0:00:36]}  b5 {[%clk 0:01:48]} 23. a6 {[%clk 0:00:34]}  Bxc3 {[%clk 0:01:48]} 24. bxc3 {[%clk 0:00:32]}  Rc7 {[%clk 0:01:41]} 25. Qf4 {[%clk 0:00:24]}  Rb8 {[%clk 0:01:37]} 26. Bb7 {[%clk 0:00:22]}  Rbxb7 {[%clk 0:01:35]} 27. axb7 {[%clk 0:00:23]}  Rxb7 {[%clk 0:01:36]} 28. Qe5 {[%clk 0:00:22]}  Qd5 {[%clk 0:01:34]} 29. Qxd5 {[%clk 0:00:22]}  exd5 {[%clk 0:01:35]} 30. Ke1 {[%clk 0:00:21]}  b4 {[%clk 0:01:32]} 31. Kd2 {[%clk 0:00:19]}  b3 {[%clk 0:01:31]} 32. Rb1 {[%clk 0:00:12]}  a5 {[%clk 0:01:30]} 33. Kc1 {[%clk 0:00:12]}  a4 {[%clk 0:01:26]} 34. Kb2 {[%clk 0:00:13]}  Re7 {[%clk 0:01:17]} 35. e3 {[%clk 0:00:13]}  d4 {[%clk 0:01:16]} 36. Re1 {[%clk 0:00:07]}  dxe3 {[%clk 0:01:13]} 37. fxe3 {[%clk 0:00:08]}  Kf7 {[%clk 0:01:06]} 38. Ka3 {[%clk 0:00:08]}  Ra7 {[%clk 0:01:04]} 39. e4 {[%clk 0:00:08]}  fxe4 {[%clk 0:01:00]} 40. Rxe4 {[%clk 0:00:09]}  Rb7 {[%clk 0:01:00]} 41. Re1 {[%clk 0:00:08]}  Ra7 {[%clk 0:00:53]} 42. Re5 {[%clk 0:00:07]}  Kf6 {[%clk 0:00:48]} 43. Re4 {[%clk 0:00:08]}  g5 {[%clk 0:00:45]} 44. h4 {[%clk 0:00:07]}  h6 {[%clk 0:00:44]} 45. h5 {[%clk 0:00:07]}  Rb7 {[%clk 0:00:37]} 46. Re1 {[%clk 0:00:07]}  Rd7 {[%clk 0:00:37]} 47. Rd1 {[%clk 0:00:04]}  c4 {[%clk 0:00:37]} 48. d4 {[%clk 0:00:05]}  Ra7 {[%clk 0:00:37]} 49. Re1 {[%clk 0:00:03]}  Kf5 {[%clk 0:00:37]} 50. Re2 {[%clk 0:00:01]}  Kg4 {[%clk 0:00:37]} 51. Re6 {[%clk 0:00:02]}  Rb7 {[%clk 0:00:37]} 52. Re1 {[%clk 0:00:01]}  Kxg3 {[%clk 0:00:35]} 53. d5 {[%clk 0:00:02]}  g4 {[%clk 0:00:35]} 54. d6 {[%clk 0:00:02]}  Rd7 {[%clk 0:00:35]} 55. Re6 {[%clk 0:00:02]}  Kh2 {[%clk 0:00:21]} 56. Rxh6 {[%clk 0:00:02]}  g3 {[%clk 0:00:21]} 57. Rg6 {[%clk 0:00:02]}  g2 {[%clk 0:00:22]} 58. h6 {[%clk 0:00:03]}  g1=Q {[%clk 0:00:22]} 59. Rxg1 {[%clk 0:00:04]}  Kxg1 {[%clk 0:00:23]} 0-1


[Site "https://www.chess.com"]

[Event "Titled Tuesday Blitz April 12 Early 2022"]
[White "Papp, Levente"]
[Black "Lach, Aleksandra"]
[WhiteFideId "751243"]
[BlackFideId "1134299"]
[WhiteElo "2308"]
[BlackElo "2172"]
[Result "0-1"]
[Round "07"]
[TimeControl "180+1"]
[Date "2022.04.13"]
[WhiteClock "0:00:03"]
[BlackClock "0:00:15"]

1. c4 {[%clk 0:03:00]}  f5 {[%clk 0:02:59]} 2. d4 {[%clk 0:02:58]}  Nf6 {[%clk 0:02:59]} 3. Nf3 {[%clk 0:02:58]}  g6 {[%clk 0:02:55]} 4. g3 {[%clk 0:02:59]}  Bg7 {[%clk 0:02:55]} 5. Bg2 {[%clk 0:02:59]}  O-O {[%clk 0:02:55]} 6. O-O {[%clk 0:03:00]}  d6 {[%clk 0:02:56]} 7. b3 {[%clk 0:02:56]}  c6 {[%clk 0:02:50]} 8. Bb2 {[%clk 0:02:56]}  Qc7 {[%clk 0:02:46]} 9. d5 {[%clk 0:02:45]}  e5 {[%clk 0:02:41]} 10. dxe6 {[%clk 0:02:44]}  Bxe6 {[%clk 0:02:41]} 11. Qc2 {[%clk 0:02:40]}  Na6 {[%clk 0:02:39]} 12. Rd1 {[%clk 0:02:35]}  Rad8 {[%clk 0:02:38]} 13. Nc3 {[%clk 0:02:30]}  h6 {[%clk 0:02:32]} 14. a3 {[%clk 0:02:27]}  Qf7 {[%clk 0:02:11]} 15. Nd4 {[%clk 0:02:21]}  Nc5 {[%clk 0:01:51]} 16. Nxe6 {[%clk 0:02:17]}  Nxe6 {[%clk 0:01:45]} 17. e3 {[%clk 0:02:06]}  Nc5 {[%clk 0:01:15]} 18. b4 {[%clk 0:01:58]}  Nce4 {[%clk 0:01:11]} 19. Ne2 {[%clk 0:01:42]}  Ng4 {[%clk 0:00:49]} 20. Rf1 {[%clk 0:01:22]}  Bxb2 {[%clk 0:00:34]} 21. Qxb2 {[%clk 0:01:22]}  Ne5 {[%clk 0:00:28]} 22. Rfd1 {[%clk 0:00:36]}  Nxc4 {[%clk 0:00:28]} 23. Qc2 {[%clk 0:00:36]}  Ne5 {[%clk 0:00:27]} 24. h4 {[%clk 0:00:32]}  d5 {[%clk 0:00:27]} 25. Nd4 {[%clk 0:00:31]}  g5 {[%clk 0:00:24]} 26. hxg5 {[%clk 0:00:31]}  hxg5 {[%clk 0:00:24]} 27. Bf3 {[%clk 0:00:28]}  Nxf3+ {[%clk 0:00:19]} 28. Nxf3 {[%clk 0:00:28]}  f4 {[%clk 0:00:20]} 29. exf4 {[%clk 0:00:22]}  gxf4 {[%clk 0:00:20]} 30. g4 {[%clk 0:00:18]}  Qg7 {[%clk 0:00:19]} 31. Kh2 {[%clk 0:00:14]}  Rd6 {[%clk 0:00:17]} 32. Ng1 {[%clk 0:00:04]}  Qxg4 {[%clk 0:00:15]} 33. Nh3 {[%clk 0:00:03]}  Rh6 {[%clk 0:00:15]} 34. Qd3 {[%clk 0:00:03]}  f3 {[%clk 0:00:15]} 35. Rg1 {[%clk 0:00:03]}  Rxh3# {[%clk 0:00:15]} 0-1


[Site "https://www.chess.com"]